fUSD/lending_fUSD_20241202
["ID","MTS","AMOUNT","RATE_DAILY","PERIOD"]
[343991893,1733170114667,291.608774,0.00025,120]
[343991894,1733170114927,500.0,0.00025,120]
[343991895,1733170115001,500.0,0.00025,120]
[343991896,1733170115118,500.0,0.00025,120]
[343991897,1733170115535,500.0,0.00025,120]
[343991898,1733170115620,2208.57,0.00025,120]
[343991899,1733170115684,200.075188,0.00025,120]
[343991900,1733170115743,500.0,0.00025,120]
[343991901,1733170115843,818.7,0.00025,120]
[343991902,1733170115896,500.0,0.00025,120]
[343991903,1733170115954,566.94,0.00025,120]
[343991904,1733170116141,500.0,0.00025,120]
[343991905,1733170116425,5245.18,0.00025,120]
[343991906,1733170116540,500.0,0.00025,120]
[343991907,1733170116624,500.0,0.00025,120]
[343991908,1733170116725,833.28,0.00025,120]
[343991909,1733170116868,590.52,0.00025,120]
[343991910,1733170117015,500.0,0.00025,120]
[343991911,1733170117432,3175.45516,0.00025,120]
[343991912,1733170117542,171.77805362,7.071e-05,2]
[343991913,1733170117728,2274.66,0.00025,120]
[343991914,1733170117999,500.0,0.00025,120]
[343991915,1733170119020,4915.17149155,0.00025,60]
[343991916,1733170119159,500.0,0.00025,120]
[343991917,1733170119355,500.0,0.00025,120]
[343991918,1733170119503,500.0,0.00025,120]
[343991919,1733170120440,500.0,0.00025,120]
[343991920,1733170120711,832.64,0.00025,120]
[343991921,1733170121244,2529.3,0.00025,120]
[343991922,1733170121295,568.83,0.00025,120]
[343991923,1733170121359,538.85,0.00025,120]
[343991924,1733170121479,586.98,0.00025,120]
[343991925,1733170121564,500.0,0.00025,120]
[343991926,1733170121931,1209.07,0.00025,120]
[343991927,1733170122037,2104.48,0.00025,120]
[343991928,1733170122303,500.0,0.00025,120]
[343991929,1733170122394,500.0,0.00025,120]
[343991930,1733170122869,500.0,0.00025,120]
[343991931,1733170123264,500.0,0.00025,120]
[343991932,1733170123507,500.0,0.00025,120]
[343991933,1733170123596,2449.73,0.00025,120]
[343991934,1733170124072,500.0,0.00025,120]
[343991935,1733170124168,1306.870624,0.00025,120]
[343991936,1733170126073,500.0,0.00025,120]
[343991937,1733170126304,1096.4,0.00025,120]
[343991938,1733170127072,500.0,0.00025,120]
[343991939,1733170127144,500.0,0.00025,120]
[343991940,1733170127511,1051.56,0.00025,120]
[343991941,1733170128041,500.0,0.00025,120]
[343991942,1733170128412,1205.69,0.00025,120]
[343991943,1733170128939,500.0591409,0.00025,120]
[343991944,1733170129404,2566.14,0.00025,120]
[343991945,1733170130072,538.45,0.00025,120]
[343991946,1733170130591,3425.3,0.00025,120]
[343991947,1733170130644,1102.69,0.00025,120]
[343991948,1733170130767,500.0,0.00025,120]
[343991949,1733170130902,782.58,0.00025,120]
[343991950,1733170131957,500.0,0.00025,120]
[343991951,1733170133160,1047.78,0.00025,120]
[343991952,1733170133977,500.0,0.00025,120]
[343991953,1733170135013,500.0,0.00025,120]
[343991954,1733170135583,500.0,0.00025,120]
[343991955,1733170136233,500.0,0.00025,120]
[343991956,1733170137445,500.0,0.00025,120]
[343991957,1733170137910,500.0,0.00025,120]
[343991958,1733170139373,25376.36,0.00025,120]
[343991959,1733170139557,500.0,0.00025,120]
[343991960,1733170140214,500.0,0.00025,120]
[343991961,1733170140556,500.0,0.00025,120]
[343991962,1733170141153,2615.78,0.00025,120]
[343991963,1733170141353,500.0,0.00025,120]
[343991964,1733170142567,500.0,0.00025,120]
[343991965,1733170142847,500.0,0.00025,120]
[343991966,1733170143154,563.91084728,0.00025,120]
[343991967,1733170143510,1329.51,0.00025,120]
[343991968,1733170143610,500.0,0.00025,120]
[343991969,1733170144892,891.8,0.00025,120]
[343991970,1733170146424,500.0,0.00025,120]
[343991971,1733170146751,2066.01,0.00025,120]
[343991972,1733170146936,4100.17,0.00025,120]
[343991973,1733170147209,500.0,0.00025,120]
[343991974,1733170147260,500.0,0.00025,120]
[343991975,1733170147379,500.0,0.00025,120]
[343991976,1733170147535,500.0,0.00025,120]
[343991977,1733170147997,500.0,0.00025,120]
[343991978,1733170148203,2739.76,0.00025,120]
[343991979,1733170148290,500.0,0.00025,120]
[343991980,1733170149228,500.0,0.00025,120]
[343991981,1733170149346,604.08,0.00025,120]
[343991982,1733170149729,150.0,0.00025,120]
[343991983,1733170150210,500.0,0.00025,120]
[343991984,1733170150568,500.0,0.00025,120]
[343991985,1733170150704,500.0,0.00025,120]
[343991986,1733170152278,738.98,0.00025,120]
[343991987,1733170152531,500.0,0.00025,120]
[343991988,1733170152733,500.0,0.00025,120]
[343991989,1733170152900,500.0,0.00025,120]
[343991990,1733170153041,2545.82,0.00025,120]
[343991991,1733170153340,2673.09,0.00025,120]
[343991992,1733170153406,500.0,0.00025,120]
[343991993,1733170153732,500.0,0.00025,120]
[343991994,1733170153950,1080.01,0.00025,120]
[343991995,1733170154051,150.103431,0.00025,120]
[343991996,1733170154904,1351.71,0.00025,120]
[343991997,1733170154966,500.0,0.00025,120]
[343991998,1733170155041,2730.35,0.00025,120]
[343991999,1733170155194,500.0,0.00025,120]
[343992000,1733170155473,500.0,0.00025,120]
[343992001,1733170155535,500.0,0.00025,120]
[343992002,1733170155759,500.0,0.00025,120]
[343992003,1733170156009,500.0,0.00025,120]
[343992004,1733170156286,500.0,0.00025,120]
[343992005,1733170156690,500.0,0.00025,120]
[343992006,1733170156927,543.81,0.00025,120]
[343992007,1733170157019,500.0,0.00025,120]
[343992008,1733170157178,500.0,0.00025,120]
[343992009,1733170157340,500.0,0.00025,120]
[343992010,1733170157435,1574.61,0.00025,120]
[343992011,1733170157616,171.27,0.00025,120]
[343992012,1733170157677,7183.78,0.00025,120]
[343992013,1733170157906,500.0,0.00025,120]
[343992014,1733170158527,5146.78,0.00025,120]
[343992015,1733170158986,4333.54,0.00025,120]
[343992016,1733170160160,1987.74,0.00025,120]
[343992017,1733170160408,624.61,0.00025,120]
[343992018,1733170160809,500.0,0.00025,120]
[343992019,1733170162222,1877.84,0.00025,120]
[343992020,1733170162324,4506.18,0.00025,120]
[343992021,1733170162428,500.0,0.00025,120]
[343992022,1733170162643,500.0,0.00025,120]
[343992023,1733170163411,1110.3,0.00025,120]
[343992024,1733170164353,1334.35,0.00025,120]
[343992025,1733170164517,3350.37,0.00025,120]
[343992026,1733170164795,2638.24,0.00025,120]
[343992027,1733170165146,500.0,0.00025,120]
[343992028,1733170166350,1508.68,0.00025,120]
[343992029,1733170167156,500.0,0.00025,120]
[343992030,1733170167647,5000.0,0.00025,120]
[343992031,1733170168166,3604.44,0.00025,120]
[343992032,1733170168478,500.0,0.00025,120]
[343992033,1733170168990,500.0,0.00025,120]
[343992034,1733170170041,607.71,0.00025,120]
[343992035,1733170170437,500.0,0.00025,120]
[343992036,1733170170663,1177.43,0.00025,120]
[343992037,1733170170972,500.0,0.00025,120]
[343992038,1733170171129,2888.96,0.00025,120]
[343992039,1733170172030,1637.1,0.00025,120]
[343992040,1733170173373,500.0,0.00025,120]
[343992041,1733170174270,500.0,0.00025,120]
[343992042,1733170174376,3939.85,0.00025,120]
[343992043,1733170174612,2185.88,0.00025,120]
[343992044,1733170174954,552.29,0.00025,120]
[343992045,1733170177460,695.19,0.00025,120]
[343992046,1733170177511,4129.69,0.00025,120]
[343992047,1733170178512,500.0,0.00025,120]
[343992048,1733170179208,500.0,0.00025,120]
[343992049,1733170179954,1722.43,0.00025,120]
[343992050,1733170180369,500.0,0.00025,120]
[343992051,1733170180437,10718.98,0.00025,120]
[343992052,1733170181318,858.37,0.00025,120]
[343992053,1733170183385,751.7,0.00025,120]
[343992054,1733170183471,5148.2,0.00025,120]
[343992055,1733170184213,574.64,0.00025,120]
[343992056,1733170184369,500.0,0.00025,120]
[343992057,1733170184614,500.0,0.00025,120]
[343992058,1733170185360,500.0,0.00025,120]
[343992059,1733170186199,1156.43,0.00025,120]
[343992060,1733170187141,500.0,0.00025,120]
[343992061,1733170187691,533.89349722,0.00025,120]
[343992062,1733170188415,2437.95,0.00025,120]
[343992063,1733170189929,500.0,0.00025,120]
[343992064,1733170190059,500.0,0.00025,120]
[343992065,1733170190332,4702.43,0.00025,120]
[343992066,1733170192459,500.0,0.00025,120]
[343992067,1733170192553,500.0,0.00025,120]
[343992068,1733170192673,2058.46,0.00025,120]
[343992069,1733170192801,500.0,0.00025,120]
[343992070,1733170192935,280.7810573,0.00025,120]
[343992071,1733170193000,500.0,0.00025,120]
[343992072,1733170194127,500.0,0.00025,120]
[343992073,1733170194214,1132.66,0.00025,120]
[343992074,1733170194376,4681.91,0.00025,120]
[343992075,1733170194541,500.0,0.00025,120]
[343992076,1733170195085,4799.55,0.00025,120]
[343992077,1733170195261,500.0,0.00025,120]
[343992078,1733170195319,675.87,0.00025,120]
[343992079,1733170195815,500.0,0.00025,120]
[343992080,1733170196624,3823.97,0.00025,120]
[343992081,1733170196759,500.0,0.00025,120]
[343992082,1733170196883,500.0,0.00025,120]
[343992083,1733170197459,2743.14,0.00025,120]
[343992084,1733170198246,2344.64,0.00025,120]
[343992085,1733170198735,500.0,0.00025,120]
[343992086,1733170199526,500.0,0.00025,120]
[343992087,1733170201455,500.0,0.00025,120]
[343992088,1733170201631,2160.37,0.00025,120]
[343992089,1733170202602,500.0,0.00025,120]
[343992090,1733170203428,3973.18,0.00025,120]
[343992091,1733170204132,500.0,0.00025,120]
[343992092,1733170206466,500.0,0.00025,120]
[343992093,1733170206677,500.0,0.00025,120]
[343992094,1733170207848,500.0,0.00025,120]
[343992095,1733170208020,1553.82,0.00025,120]
[343992096,1733170208837,500.0,0.00025,120]
[343992097,1733170209704,1074.8,0.00025,120]
[343992098,1733170210004,500.0,0.00025,120]
[343992099,1733170210055,2106.79,0.00025,120]
[343992100,1733170210294,2427.37,0.00025,120]
[343992101,1733170210458,941.46,0.00025,120]
[343992102,1733170211317,2411.68,0.00025,120]
[343992103,1733170212304,500.0,0.00025,120]
[343992104,1733170212513,579.46,0.00025,120]
[343992105,1733170212574,918.55,0.00025,120]
[343992106,1733170215331,500.0,0.00025,120]
[343992107,1733170216471,500.0,0.00025,120]
[343992108,1733170216679,500.0,0.00025,120]
[343992109,1733170217067,1152.42,0.00025,120]
[343992110,1733170217228,1263.58,0.00025,120]
[343992111,1733170217625,500.0,0.00025,120]
[343992112,1733170218058,500.0,0.00025,120]
[343992113,1733170218789,1426.61,0.00025,120]
[343992114,1733170219361,500.0,0.00025,120]
[343992115,1733170219478,500.0,0.00025,120]
[343992116,1733170219548,500.0,0.00025,120]
[343992117,1733170219675,500.0,0.00025,120]
[343992118,1733170219807,500.0,0.00025,120]
[343992119,1733170220468,4475.8,0.00025,120]
[343992120,1733170221765,500.0,0.00025,120]
[343992121,1733170221824,500.0,0.00025,120]
[343992122,1733170221883,1622.39,0.00025,120]
[343992123,1733170222443,500.0,0.00025,120]
[343992124,1733170222539,26834.03,0.00025,120]
[343992125,1733170223566,2426.69,0.00025,120]
[343992126,1733170224070,1943.15,0.00025,120]
[343992127,1733170224571,500.0,0.00025,120]
[343992128,1733170225146,840.46,0.00025,120]
[343992129,1733170226443,500.0,0.00025,120]
[343992130,1733170226883,584.14,0.00025,120]
[343992131,1733170227670,6867.05,0.00025,120]
[343992132,1733170228128,2004.63,0.00025,120]
[343992133,1733170228263,4040.03,0.00025,120]
[343992134,1733170229210,882.11,0.00025,120]
[343992135,1733170229546,1603.05,0.00025,120]
[343992136,1733170230288,928.23,0.00025,120]
[343992137,1733170230619,500.0,0.00025,120]
[343992138,1733170231318,7010.27,0.00025,120]
[343992139,1733170231540,500.0,0.00025,120]
[343992145,1733170231778,548.78,0.00025,120]
[343992148,1733170231842,3206.71,0.00025,120]
[343992154,1733170231989,-969.17,7.293e-05,2]
[343992155,1733170232000,-169.9,7.353e-05,2]
[343992156,1733170232010,-172.56525,7.6e-05,2]
[343992157,1733170232020,-1165.0,7.665e-05,2]
[343992158,1733170232031,-4440.091,7.665e-05,2]
[343992159,1733170232046,-300.0,7.699e-05,2]
[343992160,1733170232057,-600.0,7.7e-05,2]
[343992161,1733170232067,-2519.12,7.7e-05,2]
[343992162,1733170232079,-150.0,7.7e-05,2]
[343992163,1733170232091,-150.0,7.7e-05,2]
[343992164,1733170232102,-432.09994361,7.7e-05,2]
[343992165,1733170232112,-541.72592377,7.7e-05,2]
[343992166,1733170232122,-150.0,7.7e-05,2]
[343992167,1733170232132,-1105.55326804,7.7e-05,2]
[343992168,1733170232141,-568.0,7.753e-05,2]
[343992169,1733170232150,-166.66,7.838e-05,2]
[343992170,1733170232159,-357.5,7.889e-05,2]
[343992171,1733170232169,-2000.0,7.9e-05,2]
[343992172,1733170232179,-2500.0,7.9e-05,2]
[343992173,1733170232189,-1456.8563,7.9e-05,2]
[343992174,1733170232200,-961.0,7.945e-05,2]
[343992175,1733170232210,-169.9,7.959e-05,2]
[343992176,1733170232220,-2577.0,7.973e-05,2]
[343992177,1733170232230,-5906.0,7.973e-05,2]
[343992178,1733170232240,-500.0,7.973e-05,2]
[343992179,1733170232250,-500.0,7.973e-05,2]
[343992181,1733170232260,-150.0,7.974e-05,2]
[343992182,1733170232270,-5800.0,7.975e-05,2]
[343992183,1733170232281,-5800.0,7.975e-05,2]
[343992184,1733170232290,-5754.79996998,7.982e-05,2]
[343992185,1733170233530,500.0,0.00025,120]
[343992186,1733170233607,585.48,0.00025,60]
[343992187,1733170233743,2154.64,0.00025,120]
[343992188,1733170234874,500.0,0.00025,120]
[343992189,1733170235255,500.0,0.00025,120]
[343992190,1733170235344,500.0,0.00025,120]
[343992191,1733170235925,500.0,0.00025,120]
[343992192,1733170236993,1467.38,0.00025,120]
[343992197,1733170237887,-2038.79215509,7.982e-05,2]
[343992198,1733170237941,-706.40787493,7.982e-05,2]
[343992199,1733170237951,-5800.0,7.983e-05,2]
[343992200,1733170237960,-8500.0,7.991e-05,2]
[343992201,1733170237970,-5800.0,7.992e-05,2]
[343992202,1733170237979,-2000.0,7.999e-05,2]
[343992203,1733170237989,-2000.0,7.999e-05,2]
[343992204,1733170237999,-5233.0,7.999e-05,2]
[343992205,1733170238008,-521941.7895157,8e-05,2]
[343992206,1733170238028,-424.999955,8e-05,2]
[343992207,1733170238105,-5079.72688747,8e-05,2]
[343992208,1733170238117,-594.05731908,8e-05,2]
[343992209,1733170238162,-3016.49003497,8e-05,2]
[343992210,1733170238215,4614.76,0.00025,120]
[343992211,1733170238240,-637.88423858,8e-05,2]
[343992212,1733170238252,-1961.78084305,8e-05,2]
[343992225,1733170238395,2810.93,0.00025,120]
[343992354,1733170239953,2444.38,0.00025,120]
[343992358,1733170239974,-8572.08950132,8e-05,2]
[343992360,1733170239986,-603.5234991,8e-05,2]
[343992362,1733170239998,-4876.72,8e-05,2]
[343992364,1733170240009,-2344.36374509,8e-05,2]
[343992366,1733170240022,-643.31999999,8e-05,2]
[343992368,1733170240034,-676.02535175,8e-05,2]
[343992400,1733170240047,-425.85811,8e-05,2]
[343992403,1733170240332,-4842.999998,8e-05,2]
[343992423,1733170240529,9431.78,0.00025,120]
[343992449,1733170240783,1989.42,0.00025,120]
[343992552,1733170241789,536.35,0.00025,120]
[343992558,1733170241845,2618.82,0.00025,120]
[343992589,1733170242226,1015.18,0.00025,120]
[343992627,1733170242597,500.0,0.00025,120]
[343992638,1733170242694,654.39,0.00025,120]
[343992649,1733170242779,-27845.57320692,8e-05,2]
[343992663,1733170242884,500.0,0.00025,120]
[343992670,1733170242947,1523.05,0.00025,120]
[343992672,1733170242964,-521.36971399,8e-05,2]
[343992674,1733170242976,-506.510943,8e-05,2]
[343992678,1733170242998,-530.229985,8e-05,2]
[343992680,1733170243010,-562.39668,8e-05,2]
[343992682,1733170243022,-5012.76013518,8e-05,2]
[343992684,1733170243037,-2639.39666671,8e-05,2]
[343992687,1733170243049,-15350.69377349,8e-05,2]
[343992689,1733170243061,-1884.10817594,8e-05,2]
[343992691,1733170243075,-6006.09286983,8e-05,2]
[343992693,1733170243089,-4554.3291672,8e-05,2]
[343992698,1733170243124,-26137.67298007,8e-05,2]
[343992700,1733170243137,-44793.81021895,8e-05,2]
[343992702,1733170243151,-3926.52474595,8e-05,2]
[343992704,1733170243164,-4414.64758628,8e-05,2]
[343992707,1733170243178,-8699.48372798,8e-05,2]
[343992709,1733170243193,-1691.03340618,8e-05,2]
[343992712,1733170243221,-77799.53097384,8e-05,2]
[343992715,1733170243239,-18324.3,8e-05,2]
[343992747,1733170243466,4402.44,0.00025,120]
[343992775,1733170243699,500.0,0.00025,120]
[343992821,1733170244247,500.0,0.00025,120]
[343992861,1733170245292,1953.22,0.00025,120]
[343992862,1733170245497,500.0,0.00025,120]
[343992864,1733170245791,-424.53279793,7.9e-05,2]
[343992865,1733170245803,-2075.46720207,7.9e-05,2]
[343992866,1733170245813,-11301.21515677,8e-05,2]
[343992867,1733170245825,-45724.81351,8e-05,2]
[343992868,1733170245848,-887.35658314,8e-05,2]
[343992869,1733170245860,-4280.62919149,8e-05,2]
[343992870,1733170245900,-1268.14417592,8e-05,2]
[343992871,1733170245911,-1122.4000698,8e-05,2]
[343992872,1733170246023,-383349.28938798,8e-05,2]
[343992888,1733170247402,878.35,0.00025,120]
[343992889,1733170247544,500.0,0.00025,120]
[343992890,1733170247639,5223.86,0.00025,120]
[343992891,1733170247766,500.0,0.00025,120]
[343992892,1733170248056,3175.96,0.00025,120]
[343992894,1733170248119,500.0,0.00025,120]
[343992895,1733170249143,500.0,0.00025,120]
[343992896,1733170249851,4242.59,0.00025,120]
[343992897,1733170250321,1857.91,0.00025,120]
[343992898,1733170250378,500.0,0.00025,120]
[343992899,1733170250796,1626.2,0.00025,120]
[343992900,1733170251723,1955.52,0.00025,120]
[343992901,1733170252107,688.44,0.00025,120]
[343992902,1733170252476,500.0,0.00025,120]
[343992903,1733170253066,2068.96,0.00025,120]
[343992904,1733170254408,5676.19,0.00025,120]
[343992905,1733170254857,4072.32,0.00025,120]
[343992906,1733170255462,2560.19,0.00025,120]
[343992907,1733170256594,500.0,0.00025,120]
[343992908,1733170256848,3603.75,0.00025,120]
[343992909,1733170258308,3826.56,0.00025,120]
[343992910,1733170258467,500.0,0.00025,120]
[343992911,1733170258526,951.47,0.00025,120]
[343992912,1733170258680,500.0,0.00025,120]
[343992913,1733170259510,505.6840135,0.00025,120]
[343992914,1733170259923,500.0,0.00025,120]
[343992915,1733170261456,500.0,0.00025,120]
[343992916,1733170262388,800.8,0.00025,120]
[343992917,1733170262839,1117.25,0.00025,120]
[343992918,1733170263385,500.0,0.00025,120]
[343992919,1733170263863,500.0,0.00025,120]
[343992920,1733170263970,500.0,0.00025,120]
[343992921,1733170264658,500.0,0.00025,120]
[343992922,1733170264815,500.0,0.00025,120]
[343992923,1733170265745,502.03,0.00025,120]
[343992924,1733170265816,1405.34,0.00025,120]
[343992925,1733170266032,500.0,0.00025,120]
[343992926,1733170266518,500.0,0.00025,120]
[343992927,1733170266623,500.0,0.00025,120]
[343992928,1733170266780,990.43,0.00025,120]
[343992929,1733170266853,2423.91,0.00025,120]
[343992930,1733170267319,20697.82,0.00025,120]
[343992931,1733170267932,500.0,0.00025,120]
[343992932,1733170269166,798.65,0.00025,120]
[343992933,1733170269300,522.51,0.00025,120]
[343992934,1733170269573,1306.02,0.00025,120]
[343992935,1733170269881,500.0,0.00025,120]
[343992936,1733170269943,999.86,0.00025,120]
[343992937,1733170270106,556.37540535,0.00025,120]
[343992938,1733170271433,1763.51,0.00025,120]
[343992939,1733170271926,16609.23,0.00025,120]
[343992940,1733170272343,1094.62,0.00025,120]
[343992941,1733170272892,500.0,0.00025,120]
[343992942,1733170274394,720.8,0.00025,120]
[343992943,1733170274517,500.0,0.00025,120]
[343992944,1733170274692,500.0,0.00025,120]
[343992945,1733170274793,653.67,0.00025,120]
[343992946,1733170275233,500.0,0.00025,120]
[343992947,1733170275907,1768.15,0.00025,120]
[343992948,1733170275963,2739.68,0.00025,120]
[343992949,1733170276509,736.85,0.00025,120]
[343992950,1733170277692,7690.01,0.00025,120]
[343992951,1733170277749,765.53,0.00025,120]
[343992952,1733170279817,500.0,0.00025,120]
[343992953,1733170281061,500.0,0.00025,120]
[343992954,1733170281303,500.0,0.00025,120]
[343992955,1733170281563,500.0,0.00025,120]
[343992956,1733170281633,757.45,0.00025,120]
[343992957,1733170282454,500.0,0.00025,120]
[343992958,1733170283104,500.0,0.00025,120]
[343992959,1733170283369,500.0,0.00025,120]
[343992960,1733170283726,333.58190436,0.00025,120]
[343992961,1733170283808,500.0,0.00025,120]
[343992962,1733170284021,4324.0,0.00025,120]
[343992963,1733170284164,500.0,0.00025,120]
[343992964,1733170284290,500.0,0.00025,120]
[343992965,1733170284828,500.0,0.00025,120]
[343992966,1733170285232,11072.61,0.00025,120]
[343992967,1733170285517,5707.85,0.00025,120]
[343992968,1733170285944,1143.2,0.00025,120]
[343992969,1733170286006,4095.72,0.00025,120]
[343992970,1733170286058,500.0,0.00025,120]
[343992971,1733170287141,2506.79,0.00025,120]
[343992972,1733170287195,532.6,0.00025,120]
[343992973,1733170287870,500.0,0.00025,120]
[343992974,1733170288722,1621.46,0.00025,120]
[343992975,1733170289097,500.0,0.00025,120]
[343992976,1733170289158,500.0,0.00025,120]
[343992977,1733170290394,500.0,0.00025,120]
[343992978,1733170290513,500.0,0.00025,120]
[343992979,1733170291549,851.02,0.00025,120]
[343992980,1733170291718,901.3,0.00025,120]
[343992981,1733170291793,500.0,0.00025,120]
[343992982,1733170293663,1183.83,0.00025,120]
[343992983,1733170293850,190.80781615,0.00025,120]
[343992984,1733170294917,1975.67,0.00025,120]
[343992985,1733170295673,2168.45,0.00025,120]
[343992986,1733170295800,7047.62,0.00025,120]
[343992987,1733170296041,993.66,0.00025,120]
[343992988,1733170296114,500.0,0.00025,120]
[343992989,1733170296382,1636.41,0.00025,120]
[343992990,1733170296441,1683.85,0.00025,120]
[343992991,1733170296523,1088.84,0.00025,120]
[343992992,1733170298336,500.0,0.00025,120]
[343992993,1733170298745,500.0,0.00025,120]
[343992994,1733170298812,500.0,0.00025,120]
[343992995,1733170299016,2434.68,0.00025,120]
[343992996,1733170300168,190.62321056,0.00025,120]
[343992997,1733170300977,628.46248182,0.00025,120]
[343992998,1733170301108,3620.88,0.00025,120]
[343992999,1733170302182,565.16,0.00025,120]
[343993000,1733170302244,906.7,0.00025,120]
[343993001,1733170302474,500.0,0.00025,120]
[343993002,1733170302533,2787.32,0.00025,120]
[343993003,1733170302626,500.0,0.00025,120]
[343993004,1733170303138,2742.81,0.00025,120]
[343993005,1733170303614,4932.33,0.00025,120]
[343993006,1733170304052,11924.21,0.00025,120]
[343993007,1733170304115,500.0,0.00025,120]
[343993008,1733170304560,2876.49,0.00025,120]
[343993009,1733170305289,998.31,0.00025,120]
[343993010,1733170305643,538.92,0.00025,120]
[343993011,1733170305749,500.0,0.00025,120]
[343993012,1733170306354,3047.72,0.00025,120]
[343993013,1733170307731,500.0,0.00025,120]
[343993014,1733170309031,11170.91,0.00025,120]
[343993015,1733170310555,581.29,0.00025,120]
[343993016,1733170310824,4323.9,0.00025,120]
[343993017,1733170310884,892.7,0.00025,120]
[343993018,1733170311612,500.0,0.00025,120]
[343993019,1733170311665,500.0,0.00025,120]
[343993020,1733170311745,1206.69,0.00025,120]
[343993021,1733170311835,500.0,0.00025,120]
[343993022,1733170311945,500.0,0.00025,120]
[343993023,1733170312455,2260.04,0.00025,120]
[343993024,1733170312677,2295.66,0.00025,120]
[343993025,1733170312738,551.82,0.00025,120]
[343993026,1733170312977,3454.25,0.00025,120]
[343993027,1733170313883,500.0,0.00025,120]
[343993028,1733170314011,500.0,0.00025,120]
[343993029,1733170314122,500.0,0.00025,120]
[343993030,1733170314551,500.0,0.00025,120]
[343993031,1733170314725,691.94,0.00025,120]
[343993032,1733170315461,1401.59,0.00025,120]
[343993033,1733170315852,3084.29,0.00025,120]